bitfinex/quotes_SOLUSD_20250908
["timestamp","ask_amount","ask_price","bid_price","bid_amount"]
[1757359587194,13.59559401,215.52,215.43,26.0]
[1757359587400,13.59559401,215.5,215.44,37.36]
[1757359587607,13.59559401,215.5,215.43,26.72]
[1757359587915,8.53009438,215.52,215.45,37.36]
[1757359588111,13.59559401,215.51,215.45,37.36]
[1757359588316,13.59559401,215.51,215.46,42.00123271]
[1757359588498,13.59559401,215.51,215.43,26.0]
[1757359588698,26.06563316,215.52,215.39,0.03]
[1757359588699,13.59559401,215.46,215.44,37.36]
[1757359589013,22.12568839,215.46,215.45,37.36]
[1757359589213,13.59559401,215.44,215.4,37.38]
[1757359589412,8.53009438,215.43,215.4,37.38]
[1757359589594,13.59559401,215.42,215.4,37.38]
[1757359589795,13.59559401,215.44,215.4,38.1]
[1757359590309,13.59559401,215.44,215.4,0.72]
[1757359590511,21.42568839,215.44,215.39,0.03]
[1757359590816,13.59559401,215.42,215.41,37.48]
[1757359591021,22.12568839,215.44,215.39,0.03]
[1757359591219,13.59559401,215.43,215.39,0.03]
[1757359591603,22.12568839,215.43,215.4,37.48]
[1757359591812,0.7,215.43,215.39,0.03]
[1757359592005,21.42568839,215.44,215.41,37.48]
[1757359592318,13.59559401,215.45,215.41,37.48]
[1757359592620,13.59559401,215.46,215.41,4.64219819]
[1757359592826,13.59559401,215.46,215.42,38.2]
[1757359593121,13.59559401,215.48,215.42,0.72]
[1757359593423,13.59559401,215.46,215.43,37.48]
[1757359593726,4.64065754,215.49,215.39,37.6365644]
[1757359593727,13.59559401,215.43,215.39,0.03]
[1757359593901,13.59559401,215.43,215.41,0.2795]
[1757359594097,14.29559401,215.42,215.41,0.2795]
[1757359594525,18.93768852,215.42,215.41,0.2795]
[1757359595012,26.7677829,215.42,215.41,0.2795]
[1757359595824,18.93768852,215.42,215.41,0.2795]
[1757359596030,26.7677829,215.42,215.41,0.2795]
[1757359598407,30.64879614,215.42,215.41,0.2795]
[1757359598601,18.93768852,215.42,215.41,0.2795]
[1757359598802,30.64879614,215.42,215.41,0.2795]
[1757359600211,30.64879614,215.42,215.39,0.03]
[1757359600212,51.30670163,215.4,215.39,0.03]
[1757359600408,44.57763063,215.4,215.39,0.03]
[1757359600617,45.27763063,215.4,215.39,0.03]
[1757359601936,49.92015616,215.4,215.39,0.03]
[1757359602324,44.23811954,215.4,215.39,0.03]
[1757359602547,13.59559401,215.4,215.39,0.03]
[1757359603606,11.60208291,215.48,215.39,0.74]
[1757359603806,9.62305393,215.47,215.39,0.74]
[1757359604040,18.57763063,215.46,215.39,0.74]
[1757359604334,19.27763063,215.46,215.39,0.74]
[1757359604842,19.27763063,215.46,215.39,38.24]
[1757359605937,13.59559401,215.44,215.39,38.24]
[1757359606138,13.59559401,215.42,215.39,0.03]
[1757359606342,4.98203662,215.43,215.39,37.51]
[1757359606343,11.70855518,215.41,215.39,37.51]
[1757359606542,25.30414919,215.42,215.39,37.51]
[1757359606708,25.30414919,215.42,215.39,0.03]
[1757359606909,14.29559401,215.42,215.39,0.03]
[1757359607109,26.00414919,215.42,215.39,0.03]
[1757359607323,12.40855518,215.42,215.39,0.03]
[1757359608030,148.09559401,215.41,215.39,0.03]
[1757359610026,152.73802114,215.41,215.39,0.03]
[1757359610227,3.44080492,215.4,215.39,0.03]
[1757359611224,8.08333045,215.4,215.39,0.03]
[1757359611738,3.44080492,215.4,215.39,0.03]
[1757359612534,3.44080492,215.4,215.39,37.39]
[1757359612956,3.44080492,215.4,215.39,37.37]
[1757359614539,3.44080492,215.4,215.39,42.72274107]
[1757359615220,148.09559401,215.41,215.39,42.72274107]
[1757359615424,148.09559401,215.41,215.4,0.71]
[1757359615630,134.5,215.41,215.4,0.71]
[1757359615940,11.60014724,215.52,215.4,0.71]
[1757359615941,25.30414919,215.47,215.4,0.71]
[1757359616232,16.35098232,215.41,215.39,0.03]
[1757359616438,17.04958751,215.4,215.39,0.03]
[1757359616829,13.59559401,215.43,215.39,0.03]
[1757359617034,3.45459914,215.42,215.39,0.03]
[1757359617342,13.59559401,215.45,215.39,0.03]
[1757359617639,13.59559401,215.43,215.39,0.03]
[1757359617828,13.59559401,215.45,215.39,0.74]
[1757359618017,13.59559401,215.43,215.39,0.74]
[1757359618832,13.59559401,215.44,215.39,0.74]
[1757359619028,13.59559401,215.44,215.39,0.03]
[1757359619226,0.7,215.44,215.39,0.74]
[1757359619429,13.59559401,215.45,215.39,0.03]
[1757359619430,0.7,215.43,215.39,0.03]
[1757359619628,0.7,215.43,215.4,37.32]
[1757359619845,26.00414919,215.45,215.4,37.32]
[1757359620045,4.15809191,215.44,215.4,37.32]
[1757359620243,0.7,215.44,215.4,37.32]
[1757359620423,13.59559401,215.45,215.41,0.71]
[1757359620627,3.45957909,215.44,215.41,0.71]
[1757359620837,18.23707257,215.45,215.41,0.71]
[1757359621035,3.45993112,215.44,215.4,37.32]
[1757359621348,0.7,215.43,215.41,37.3]
[1757359621644,13.59559401,215.41,215.39,0.03]
[1757359621822,25.30414919,215.4,215.39,0.03]
[1757359622023,29.46487659,215.4,215.39,0.03]
[1757359622435,34.10740212,215.4,215.39,0.03]
[1757359625542,30.64667472,215.4,215.39,0.03]
[1757359626327,34.10416057,215.4,215.39,0.03]
[1757359628334,27.37661014,215.4,215.39,0.03]
[1757359628728,22.39560539,215.4,215.39,0.03]
[1757359628954,27.37661014,215.4,215.39,0.03]
[1757359629850,13.59559401,215.4,215.39,0.03]
[1757359631449,13.59559401,215.4,215.39,0.7]
[1757359632752,13.59559401,215.4,215.39,0.03]
[1757359633664,13.59559401,215.4,215.39,0.7]
[1757359634040,4.70123919,215.46,215.39,0.7]
[1757359634243,13.59559401,215.45,215.39,0.7]
[1757359634474,13.59559401,215.43,215.39,0.03]
[1757359634646,18.57659876,215.43,215.39,0.03]
[1757359634970,13.59559401,215.41,215.39,0.03]
[1757359636046,13.59559401,215.41,215.39,0.7]
[1757359636368,13.59559401,215.43,215.4,0.67]
[1757359636863,13.59559401,215.43,215.39,0.03]
[1757359637066,13.59559401,215.43,215.39,0.7]
[1757359637756,0.06,215.45,215.4,0.67]
[1757359638069,13.65559401,215.45,215.4,0.67]
[1757359638370,0.06,215.45,215.41,0.67]
[1757359638664,0.06,215.45,215.42,0.67]
[1757359639241,0.06,215.45,215.43,0.67]
[1757359639447,0.06,215.45,215.44,37.2]
[1757359642272,0.76,215.45,215.4,4.6425096]
[1757359642467,0.06,215.45,215.41,37.16]
[1757359642770,0.06,215.45,215.42,0.67]
[1757359643681,13.59559401,215.42,215.41,37.12]
[1757359643974,19.27659876,215.42,215.39,0.03]
[1757359644161,13.59559401,215.4,215.39,0.03]
[1757359644367,14.29559401,215.4,215.39,0.03]
[1757359645775,18.93811954,215.4,215.39,0.03]
[1757359646462,18.23811954,215.4,215.39,0.03]
[1757359647365,13.59559401,215.4,215.39,0.7]
[1757359647559,13.59559401,215.4,215.39,37.8]
[1757359647768,13.59559401,215.4,215.39,37.13]
[1757359648549,13.59559401,215.4,215.39,0.03]
[1757359648759,13.59559401,215.4,215.39,37.13]
[1757359652375,134.5,215.41,215.39,37.8]
[1757359652571,148.09559401,215.41,215.4,0.67]
[1757359652764,148.09559401,215.41,215.4,37.77]
[1757359653560,148.09559401,215.41,215.4,0.67]
[1757359653873,148.15559401,215.41,215.4,37.77]
[1757359654087,0.06,215.41,215.4,37.77]
[1757359654316,0.06,215.41,215.4,42.41252553]
[1757359654463,0.06,215.41,215.4,5.31252553]
[1757359654778,0.06,215.41,215.4,42.41252553]
[1757359655558,0.06,215.41,215.4,5.31252553]
[1757359655874,0.06,215.41,215.4,42.41252553]
[1757359657381,0.06,215.41,215.4,5.31252553]
[1757359657574,0.06,215.41,215.4,42.41252553]
[1757359660288,0.06,215.41,215.4,5.31252553]
[1757359660499,0.06,215.41,215.4,42.41252553]
[1757359661066,0.06,215.41,215.4,26.0]
[1757359661294,0.06,215.41,215.39,4.67271098]
[1757359661587,0.06,215.41,215.4,37.1]
[1757359662698,0.06,215.41,215.39,30.67271098]
[1757359662906,0.06,215.41,215.4,37.1]
[1757359663071,0.06,215.41,215.4,37.82]
[1757359664297,0.06,215.41,215.39,0.03]
[1757359664501,13.59559401,215.4,215.39,0.03]
[1757359664694,17.46854995,215.4,215.39,0.03]
[1757359665010,20.92262064,215.4,215.39,0.03]
[1757359666002,25.56514617,215.4,215.39,0.03]
[1757359666705,17.7396647,215.4,215.39,0.03]
[1757359666909,22.38219023,215.4,215.39,0.03]
[1757359668706,25.56514617,215.4,215.39,0.03]
[1757359669504,22.38219023,215.4,215.39,0.03]
[1757359669703,25.56514617,215.4,215.39,0.03]
[1757359672699,17.7396647,215.4,215.39,0.03]
[1757359672898,14.28559401,215.4,215.39,0.03]
[1757359673117,17.74227981,215.4,215.39,0.03]
[1757359673900,22.38480534,215.4,215.39,0.03]
[1757359674619,1.47,215.39,215.37,37.1]
[1757359675319,135.97,215.39,215.37,37.1]
[1757359675820,1.47,215.39,215.38,0.72]
[1757359676019,15.06559401,215.39,215.38,0.72]
[1757359676633,1.47,215.39,215.38,5.36295663]
[1757359676924,1.47,215.39,215.38,42.46295663]
[1757359677314,1.47,215.39,215.38,5.36295663]
[1757359677514,1.47,215.39,215.38,42.46295663]
[1757359681101,0.06,215.41,215.4,26.0]
[1757359681526,0.06,215.41,215.4,26.72]
[1757359684350,0.06,215.41,215.4,31.36252553]
[1757359687120,0.06,215.6,215.48,20.0]
[1757359687336,0.06,215.6,215.49,83.65687038]
[1757359687644,0.06,215.6,215.53,26.0]
[1757359687823,0.06,215.6,215.56,26.0]
[1757359688216,0.06,215.6,215.57,26.0]
[1757359688416,0.06,215.6,215.58,37.26]
[1757359688643,0.06,215.62,215.61,30.6380038]
[1757359688942,0.06,215.62,215.61,67.8980038]
[1757359689147,0.06,215.62,215.61,30.6380038]
[1757359689318,13.59559401,215.61,215.52,37.36]
[1757359689523,13.59559401,215.57,215.53,3.1467577]
[1757359689733,0.06,215.62,215.55,26.0]
[1757359689919,13.59559401,215.59,215.56,3.14709773]
[1757359690119,0.72,215.58,215.53,37.42]
[1757359690332,0.06,215.62,215.5,37.46]
[1757359690333,4.16255207,215.57,215.5,37.46]
[1757359690530,13.59559401,215.55,215.51,37.46]
[1757359690722,13.59559401,215.53,215.51,37.48]
[1757359690928,17.75814608,215.52,215.51,37.48]
[1757359691944,13.59559401,215.51,215.49,26.0]
[1757359692150,17.03814608,215.5,215.49,26.0]
[1757359693053,17.03814608,215.5,215.49,63.46]
[1757359694748,17.03814608,215.5,215.39,17.55549024]
[1757359694749,13.59559401,215.47,215.36,0.03]
[1757359694957,13.59559401,215.4,215.38,0.43]
[1757359695253,20.94110202,215.39,215.38,0.43]
[1757359695458,17.75814608,215.39,215.38,0.43]
[1757359697247,30.24657973,215.39,215.38,0.43]
[1757359697452,30.24657973,215.39,215.31,0.72]
[1757359697453,21.44128659,215.36,215.27,12.33307011]
[1757359697756,13.59559401,215.34,215.3,26.0]
[1757359697933,3.44255207,215.33,215.3,26.0]
[1757359698239,3.44255207,215.32,215.3,26.0]
[1757359698442,13.59559401,215.37,215.3,26.0]
[1757359698646,3.43773243,215.36,215.31,38.26]
[1757359698853,13.59559401,215.34,215.33,26.0]
[1757359699053,17.03332644,215.34,215.28,4.64506144]
[1757359699253,3.43773243,215.33,215.29,37.56]
[1757359699550,3.43773243,215.32,215.29,37.56]
[1757359699754,3.43773243,215.31,215.29,37.56]
[1757359699954,13.59559401,215.34,215.29,37.56]
[1757359700143,13.59559401,215.32,215.29,37.56]
[1757359700337,3.43663282,215.31,215.29,37.56]
[1757359700649,13.59559401,215.35,215.29,37.56]
[1757359700852,13.59559401,215.35,215.19,66.99559401]
[1757359700853,13.59559401,215.33,215.19,13.59559401]
[1757359701058,13.59559401,215.24,215.15,0.72]
[1757359701258,13.59559401,215.22,215.19,24.04]
[1757359701435,0.72,215.24,215.19,24.04]
[1757359701749,13.59559401,215.22,215.19,24.04]
[1757359702131,3.43239331,215.21,215.19,24.04]
[1757359702326,8.56569258,215.26,215.19,24.04]
[1757359702526,13.59559401,215.24,215.19,24.04]
[1757359702739,3.43051781,215.23,215.19,24.04]
[1757359702938,13.59559401,215.21,215.19,24.04]
[1757359703140,3.42895166,215.2,215.19,24.04]
[1757359704051,3.42889056,215.2,215.19,24.04]
[1757359705055,3.42718878,215.2,215.19,28.68705608]
[1757359705447,13.59559401,215.23,215.19,24.04]
[1757359705654,3.42588831,215.22,215.19,24.04]
[1757359705956,0.72,215.23,215.19,28.68699905]
[1757359705957,3.42578804,215.21,215.19,28.68699905]
[1757359706155,13.59559401,215.22,215.06,20.0]
[1757359706346,21.44128659,215.19,215.08,38.4]
[1757359706542,13.59559401,215.17,215.09,37.68]
[1757359706762,13.59559401,215.15,215.12,26.0]
[1757359706949,3.42411981,215.14,215.13,5.36835215]
[1757359707154,13.59559401,215.2,215.13,43.04835215]
[1757359707352,13.59559401,215.18,215.13,43.04835215]
[1757359707553,0.72,215.24,215.16,26.0]
[1757359707762,17.01638037,215.23,215.17,37.7]
[1757359708061,13.59559401,215.21,215.16,26.0]
[1757359708362,13.59559401,215.19,215.17,37.72]
[1757359708553,3.42078636,215.18,215.17,37.72]
[1757359708967,3.42078636,215.18,215.17,42.36748803]
[1757359709436,13.59559401,215.23,215.17,30.64748803]
[1757359709638,13.59559401,215.21,215.18,37.72]
[1757359709840,3.41701761,215.2,215.18,37.72]
[1757359710042,3.41701761,215.19,215.18,37.72]
[1757359710749,3.41701761,215.19,215.17,4.64748803]
[1757359710955,13.59559401,215.23,215.18,37.7]
[1757359711157,13.59559401,215.21,215.18,42.34724903]
[1757359711356,3.41524014,215.2,215.18,42.34724903]
[1757359711563,3.41524014,215.19,215.18,42.34724903]
[1757359712140,13.59559401,215.26,215.18,54.68542915]
[1757359712365,13.59559401,215.24,215.19,37.68]
[1757359712552,3.4121293,215.23,215.2,0.72]
[1757359712752,3.4121293,215.22,215.2,0.72]
[1757359712954,3.4121293,215.21,215.2,0.72]
[1757359713360,3.4121293,215.21,215.2,5.36684014]
[1757359713562,13.59559401,215.26,215.2,5.36684014]
[1757359713866,13.59559401,215.24,215.2,5.36684014]
[1757359714064,13.59559401,215.26,215.2,16.26394051]
[1757359714257,13.59559401,215.24,215.2,16.26394051]
[1757359714462,13.59559401,215.26,215.2,16.98394051]
[1757359714660,13.59559401,215.24,215.2,16.26394051]
[1757359714857,13.59559401,215.26,215.2,16.26394051]
[1757359715154,13.59559401,215.24,215.2,16.26394051]
[1757359715357,13.59559401,215.26,215.21,0.72]
[1757359715659,13.59559401,215.26,215.21,38.36]
[1757359716050,13.59559401,215.26,215.22,38.34]
[1757359716249,13.59559401,215.26,215.23,0.72]
[1757359716551,13.59559401,215.27,215.23,0.72]
[1757359716760,13.59559401,215.27,215.22,63.62]
[1757359716962,13.59559401,215.27,215.22,64.34]
[1757359717350,13.59559401,215.27,215.23,16.26167355]
[1757359718175,13.59559401,215.27,215.24,0.72]
[1757359718469,13.59559401,215.27,215.25,37.6]
[1757359718853,13.59559401,215.27,215.23,16.26167355]
[1757359719060,13.59559401,215.27,215.24,37.56]
[1757359719351,0.72,215.27,215.25,37.56]
[1757359719558,0.72,215.27,215.26,37.56]
[1757359719748,4.12833518,215.27,215.26,37.56]
[1757359720144,4.12833518,215.27,215.23,4.64619244]
[1757359720348,0.72,215.27,215.24,37.56]
[1757359720548,0.71,215.26,215.23,30.64619244]
[1757359720771,0.71,215.25,215.24,37.54]
[1757359721149,4.11768321,215.25,215.24,37.54]
[1757359721350,13.59559401,215.31,215.28,26.0]
[1757359721569,13.59559401,215.3,215.29,37.54]
[1757359722549,13.59559401,215.3,215.28,26.0]
[1757359722764,13.59559401,215.3,215.29,42.20489758]
[1757359722966,13.59559401,215.33,215.29,42.20489758]
[1757359723163,3.40861966,215.32,215.29,42.20489758]
[1757359723362,0.71,215.32,215.3,37.54]
[1757359723765,0.71,215.32,215.31,37.54]
[1757359723964,17.7144963,215.32,215.31,37.54]
[1757359724569,17.0044963,215.32,215.31,37.54]
[1757359725157,17.7144963,215.32,215.29,4.64489758]
[1757359725376,14.30559401,215.32,215.29,4.64489758]
[1757359725675,14.30559401,215.32,215.3,37.5]
[1757359726263,3.40910783,215.31,215.3,37.5]
[1757359726462,3.40910783,215.31,215.3,42.14468183]
[1757359726873,13.59559401,215.32,215.28,30.64506163]
[1757359727055,13.59559401,215.32,215.3,37.5]
[1757359727262,3.41018339,215.31,215.3,37.5]
[1757359728155,3.41018339,215.31,215.28,30.64506163]
[1757359728359,13.59559401,215.32,215.29,42.08479491]
[1757359728576,3.41078446,215.31,215.29,42.08479491]
[1757359728776,13.59559401,215.32,215.29,42.08479491]
[1757359728979,3.4108047,215.31,215.29,42.08479491]
[1757359729285,13.59559401,215.32,215.29,42.08479491]
[1757359729472,3.41145676,215.31,215.29,42.08479491]
[1757359729665,14.30559401,215.32,215.29,42.08479491]
[1757359729855,3.41145705,215.31,215.29,42.08479491]
[1757359730056,14.30559401,215.32,215.29,42.08479491]
[1757359730273,3.41145705,215.31,215.29,42.08479491]
[1757359730484,13.59559401,215.32,215.29,42.08479491]
[1757359730680,3.41215804,215.31,215.29,42.08479491]
[1757359730882,13.59559401,215.32,215.29,42.08479491]
[1757359731086,3.41225709,215.31,215.29,42.08479491]
[1757359731290,13.59559401,215.32,215.29,42.08479491]
[1757359731470,3.41300899,215.31,215.29,42.08479491]
[1757359731672,13.59559401,215.32,215.29,42.08479491]
[1757359731877,3.41300899,215.31,215.29,42.08479491]
[1757359732097,13.59559401,215.32,215.29,42.08479491]
[1757359732270,3.41707925,215.31,215.29,42.08479491]
[1757359732583,3.41707925,215.3,215.29,4.64479491]
[1757359732975,3.41707925,215.3,215.29,42.00479491]
[1757359733186,3.41707925,215.3,215.29,4.64479491]
[1757359733387,3.41707925,215.3,215.29,42.00479491]
[1757359733571,3.41707925,215.3,215.29,4.64479491]
[1757359733891,3.41707925,215.3,215.29,41.98479491]
[1757359734769,3.41707925,215.3,215.29,41.96479491]
[1757359737280,3.43799516,215.3,215.29,41.96479491]
[1757359738599,3.43799516,215.3,215.29,4.64479491]
[1757359738784,3.43799516,215.3,215.29,41.90479491]
[1757359739896,3.43799516,215.3,215.29,42.56479491]
[1757359740094,0.06,215.33,215.32,26.0]
[1757359740291,0.06,215.33,215.32,63.26]
[1757359740492,0.06,215.33,215.32,63.92]
[1757359741876,0.06,215.33,215.32,68.56425041]
[1757359742496,0.06,215.39,215.32,80.17487645]
[1757359742700,0.06,215.39,215.33,0.66]
[1757359742899,0.06,215.39,215.37,26.0]
[1757359743080,0.06,215.39,215.38,37.24]
[1757359743281,0.06,215.39,215.38,37.9]
[1757359743902,0.06,215.39,215.38,42.54295663]
[1757359744482,0.06,215.39,215.38,5.30295663]
[1757359745079,0.06,215.39,215.38,42.52295663]
[1757359745284,0.06,215.44,215.41,26.0]
[1757359745499,0.71,215.41,215.34,12.2691825]
[1757359745699,0.71,215.41,215.37,26.0]
[1757359745894,0.71,215.4,215.38,67.88285046]
[1757359746097,0.71,215.4,215.39,37.24]
[1757359746408,0.71,215.4,215.38,30.64285046]
[1757359746702,0.77,215.42,215.39,37.24]
[1757359746888,0.71,215.41,215.39,41.88257111]
[1757359747311,0.71,215.4,215.39,4.64257111]
[1757359747511,14.30559401,215.4,215.39,37.22]
[1757359748288,14.30559401,215.4,215.39,37.4998]
[1757359748483,14.30559401,215.4,215.39,37.4798]
[1757359749906,14.30559401,215.4,215.39,0.2798]
[1757359750111,14.30559401,215.4,215.39,37.4598]
[1757359750296,14.30559401,215.4,215.39,0.2798]
[1757359750494,14.30559401,215.4,215.39,37.4398]
[1757359750700,14.30559401,215.4,215.39,42.08254107]
[1757359750914,0.06,215.42,215.39,42.78254107]
[1757359751092,0.06,215.42,215.39,54.38939375]
[1757359751615,0.06,215.42,215.39,42.78254107]
[1757359751909,0.06,215.42,215.39,54.38939375]
[1757359752302,0.06,215.42,215.39,17.22939375]
[1757359752506,0.06,215.42,215.4,37.18]
[1757359752698,0.06,215.42,215.41,4.64231001]
[1757359753602,0.77,215.42,215.41,41.80231001]
[1757359754806,0.06,215.42,215.41,41.80231001]
[1757359755911,0.06,215.42,215.4,4.64252553]
[1757359756116,0.06,215.42,215.41,37.16]
[1757359756293,0.06,215.42,215.39,0.2798]
[1757359756494,0.77,215.42,215.4,26.0]
[1757359756697,0.77,215.42,215.4,63.16]
[1757359756904,0.06,215.42,215.4,63.16]
[1757359758113,0.06,215.42,215.41,4.64231001]
[1757359758623,0.06,215.42,215.41,41.80231001]
[1757359760418,0.06,215.42,215.4,4.64251042]
[1757359760620,14.36559401,215.42,215.41,37.16]
[1757359761220,0.77,215.42,215.41,37.16]
[1757359761604,0.77,215.42,215.39,30.92250332]
[1757359761814,0.77,215.42,215.4,37.16]
[1757359762732,0.06,215.42,215.41,4.64231001]
[1757359763417,0.77,215.42,215.41,4.64231001]
[1757359763614,14.36559401,215.42,215.41,4.64231001]
[1757359765707,14.36559401,215.42,215.4,26.0]
[1757359765909,0.71,215.41,215.4,26.0]
[1757359766109,13.65559401,215.42,215.4,63.16]
[1757359767033,0.06,215.42,215.4,63.16]
[1757359767518,0.06,215.42,215.41,63.86]
[1757359767717,1e-08,215.42,215.41,68.50231001]
[1757359769229,1e-08,215.42,215.41,31.34231001]
[1757359769731,1e-08,215.42,215.41,68.50231001]
[1757359770027,1e-08,215.42,215.41,31.62211001]
[1757359770238,1e-08,215.42,215.41,68.76211001]
[1757359770813,1e-08,215.42,215.41,31.62211001]
[1757359771014,1e-08,215.42,215.41,68.76211001]
[1757359771541,0.06,215.44,215.41,80.36788504]
[1757359771841,0.06,215.44,215.42,0.7]
[1757359772036,0.06,215.44,215.43,41.78187903]
[1757359772215,0.06,215.44,215.43,42.48187903]
[1757359775540,0.06,215.44,215.43,5.34187903]
[1757359775742,0.06,215.44,215.43,42.48187903]
[1757359777628,0.06,215.44,215.43,41.78187903]
[1757359778026,0.06,215.44,215.43,42.48187903]
[1757359779037,0.06,215.44,215.43,5.34187903]
[1757359779230,0.06,215.44,215.43,42.48187903]
[1757359782136,0.06,215.44,215.43,5.34187903]
[1757359782340,0.06,215.44,215.43,42.48187903]
[1757359782543,0.06,215.44,215.43,42.46187903]
[1757359782743,0.06,215.45,215.43,42.46187903]
[1757359782943,0.06,215.45,215.44,0.71]
[1757359784038,0.06,215.45,215.44,5.35166357]
[1757359785448,0.06,215.45,215.44,42.47166357]
[1757359785690,0.06,215.45,215.44,5.35166357]
[1757359785844,0.06,215.45,215.44,42.47166357]
[1757359786854,0.06,215.45,215.44,30.64166357]
[1757359787059,0.06,215.45,215.44,67.76166357]
[1757359787642,0.06,215.45,215.44,30.64166357]
[1757359787836,0.06,215.45,215.44,67.76166357]
[1757359788755,0.76,215.45,215.44,67.76166357]
[1757359788962,0.06,215.45,215.44,67.76166357]
[1757359789459,0.76,215.45,215.44,30.64166357]
[1757359789842,0.76,215.45,215.39,26.03]
[1757359790041,0.7,215.44,215.43,26.0]
[1757359790349,0.7,215.44,215.43,63.12]
[1757359790555,0.7,215.44,215.43,67.76187903]
[1757359791653,0.7,215.44,215.43,30.64187903]
[1757359791951,0.7,215.44,215.43,67.76187903]
[1757359792156,0.7,215.44,215.43,68.04167903]
[1757359793743,0.06,215.45,215.43,68.04167903]
[1757359793953,0.76,215.45,215.44,37.12]
[1757359794142,0.06,215.45,215.44,37.12]
[1757359794353,0.06,215.45,215.44,41.76166357]
[1757359795964,0.06,215.45,215.44,42.47166357]
[1757359796982,0.06,215.45,215.44,30.64166357]
[1757359797194,0.06,215.45,215.44,67.74166357]
[1757359797374,1e-08,215.45,215.44,68.45166357]
[1757359798983,1e-08,215.45,215.44,68.48166357]
[1757359799161,1e-08,215.45,215.44,31.38166357]
[1757359799361,1e-08,215.45,215.44,68.48166357]
[1757359799561,1e-08,215.45,215.44,67.77166357]
[1757359800068,1e-08,215.45,215.44,68.48166357]
[1757359800272,0.9,215.55,215.44,103.29414036]
[1757359800477,0.2,215.55,215.47,26.0]
[1757359800733,0.2,215.55,215.51,26.0]
[1757359800864,0.9,215.55,215.54,26.0]
[1757359801165,0.9,215.55,215.54,63.1]
[1757359801561,0.9,215.55,215.54,67.73951006]
[1757359802172,0.2,215.55,215.54,67.73951006]
[1757359802593,0.9,215.55,215.54,67.73951006]
[1757359803671,0.9,215.55,215.52,26.0]
[1757359803870,0.7,215.54,215.53,4.63971077]
[1757359804187,0.7,215.54,215.53,41.73971077]
[1757359804903,0.7,215.54,215.53,30.63971077]
[1757359805074,0.7,215.54,215.53,37.08]
[1757359805591,13.59559401,215.53,215.44,4.67166357]
[1757359805887,13.59559401,215.51,215.48,26.0]
[1757359806094,0.7,215.5,215.44,16.2758225]
[1757359806290,0.7,215.49,215.48,26.0]
[1757359806593,0.7,215.49,215.48,37.08]
[1757359807485,0.7,215.49,215.47,26.0]
[1757359807690,13.59559401,215.53,215.48,41.72080193]
[1757359808087,16.77714412,215.53,215.48,37.08]
[1757359808297,13.59559401,215.51,215.48,37.08]
[1757359808485,0.7,215.5,215.47,30.64098654]
[1757359808680,14.29559401,215.5,215.49,37.08]
[1757359808886,13.59559401,215.5,215.49,37.08]
[1757359809506,13.59559401,215.53,215.52,26.0]
[1757359809679,13.79559401,215.55,215.53,4.63972532]
[1757359809880,0.9,215.55,215.54,37.08]
[1757359810899,0.9,215.55,215.51,26.0]
[1757359811081,0.72,215.54,215.52,37.08]
[1757359811280,0.2,215.55,215.52,37.08]
[1757359811702,0.2,215.55,215.53,4.63972532]
[1757359811905,0.72,215.54,215.53,30.63972532]
[1757359812201,0.72,215.54,215.53,63.08]
[1757359812591,13.59559401,215.53,215.46,1.85636385]
[1757359812792,0.72,215.52,215.5,26.0]
[1757359812994,14.31559401,215.52,215.51,37.08]
[1757359813695,0.2,215.55,215.51,42.4301559]